[Event "December 19 Early 2023"]
[Site "https://www.chess.com"]
[Date "2023.12.19"]
[Round "6"]
[White "Sharapov, Evgeny"]
[Black "Srihari L R"]
[Result "1-0"]
[Board "48"]
[TimeControl "180+1"]
[WhiteFideId "14103133"]
[BlackFideId "46617116"]
[WhiteElo "2358"]
[BlackElo "2338"]
[WhiteTeam "UKR"]
[BlackTeam "IND"]
[WhiteClock "0:00:40"]
[BlackClock "0:00:00"]

1. e4 {[%clk 0:03:00]}  c5 {[%clk 0:02:57]} 2. Nf3 {[%clk 0:03:00]}  Nc6 {[%clk 0:02:57]} 3. d4 {[%clk 0:03:00]}  cxd4 {[%clk 0:02:58]} 4. Nxd4 {[%clk 0:03:00]}  Nf6 {[%clk 0:02:58]} 5. Nc3 {[%clk 0:03:00]}  d6 {[%clk 0:02:57]} 6. Bg5 {[%clk 0:03:00]}  e6 {[%clk 0:02:56]} 7. Qd2 {[%clk 0:03:00]}  Be7 {[%clk 0:02:55]} 8. O-O-O {[%clk 0:03:00]}  a6 {[%clk 0:02:44]} 9. f4 {[%clk 0:02:58]}  Qc7 {[%clk 0:02:41]} 10. Kb1 {[%clk 0:02:57]}  Bd7 {[%clk 0:02:40]} 11. h4 {[%clk 0:02:57]}  h6 {[%clk 0:02:34]} 12. Bxf6 {[%clk 0:02:56]}  Bxf6 {[%clk 0:02:34]} 13. Nf3 {[%clk 0:02:54]}  Be7 {[%clk 0:02:32]} 14. g4 {[%clk 0:02:53]}  b5 {[%clk 0:02:25]} 15. Bd3 {[%clk 0:02:50]}  Na5 {[%clk 0:02:17]} 16. g5 {[%clk 0:02:42]}  Nc4 {[%clk 0:02:11]} 17. Qe2 {[%clk 0:02:40]}  Rc8 {[%clk 0:02:09]} 18. gxh6 {[%clk 0:02:32]}  Rxh6 {[%clk 0:02:06]} 19. Rdg1 {[%clk 0:02:27]}  Nxb2 {[%clk 0:02:02]} 20. Kxb2 {[%clk 0:01:32]}  Qxc3+ {[%clk 0:02:00]} 21. Kc1 {[%clk 0:01:31]}  d5 {[%clk 0:01:28]} 22. exd5 {[%clk 0:01:30]}  Qa1+ {[%clk 0:00:42]} 23. Kd2 {[%clk 0:01:30]}  Bb4+ {[%clk 0:00:43]} 24. Ke3 {[%clk 0:01:29]}  Bc5+ {[%clk 0:00:43]} 25. Kd2 {[%clk 0:01:29]}  Bxg1 {[%clk 0:00:40]} 26. Rxg1 {[%clk 0:01:28]}  Qc3+ {[%clk 0:00:31]} 27. Kd1 {[%clk 0:01:20]}  Kf8 {[%clk 0:00:29]} 28. Qg2 {[%clk 0:01:15]}  g6 {[%clk 0:00:17]} 29. Ne5 {[%clk 0:01:15]}  Be8 {[%clk 0:00:11]} 30. dxe6 {[%clk 0:01:12]}  Qa1+ {[%clk 0:00:03]} 31. Ke2 {[%clk 0:01:08]}  Qxa2 {[%clk 0:00:03]} 32. Qg5 {[%clk 0:00:40]}  Rxc2+ {[%clk 0:00:00]} 33. Ke3 {[%clk 0:00:40]} 1-0

[Event "December 19 Early 2023"]
[Site "https://www.chess.com"]
[Date "2023.12.19"]
[Round "6"]
[White "Begunov, Konstantin"]
[Black "JonaszBaum"]
[Result "0-1"]
[Board "51"]
[TimeControl "180+1"]
[WhiteFideId "4118510"]
[WhiteElo "2082"]
[BlackElo "2697"]
[WhiteTeam "RUS"]
[WhiteClock "0:00:00"]
[BlackClock "0:00:04"]

1. d4 {[%clk 0:03:00]}  e6 {[%clk 0:02:59]} 2. c4 {[%clk 0:03:01]}  b6 {[%clk 0:03:00]} 3. Nc3 {[%clk 0:02:59]}  Bb7 {[%clk 0:02:59]} 4. a3 {[%clk 0:02:59]}  Nf6 {[%clk 0:02:56]} 5. Bg5 {[%clk 0:02:59]}  Be7 {[%clk 0:02:55]} 6. Nf3 {[%clk 0:02:57]}  h6 {[%clk 0:02:47]} 7. Bh4 {[%clk 0:02:56]}  d5 {[%clk 0:02:48]} 8. e3 {[%clk 0:02:56]}  O-O {[%clk 0:02:45]} 9. cxd5 {[%clk 0:02:56]}  Nxd5 {[%clk 0:02:44]} 10. Bxe7 {[%clk 0:02:55]}  Qxe7 {[%clk 0:02:45]} 11. Rc1 {[%clk 0:02:54]}  c5 {[%clk 0:02:44]} 12. dxc5 {[%clk 0:02:39]}  bxc5 {[%clk 0:02:29]} 13. Be2 {[%clk 0:02:33]}  Nd7 {[%clk 0:02:18]} 14. O-O {[%clk 0:02:33]}  Rab8 {[%clk 0:02:18]} 15. Qc2 {[%clk 0:02:32]}  Rfc8 {[%clk 0:02:12]} 16. Rfd1 {[%clk 0:02:31]}  c4 {[%clk 0:02:01]} 17. Nd4 {[%clk 0:02:08]}  Nxc3 {[%clk 0:01:46]} 18. Qxc3 {[%clk 0:02:06]}  Nb6 {[%clk 0:01:46]} 19. Qa5 {[%clk 0:02:00]}  Qg5 {[%clk 0:01:45]} 20. Qxg5 {[%clk 0:01:54]}  hxg5 {[%clk 0:01:46]} 21. Nb5 {[%clk 0:01:54]}  Ba6 {[%clk 0:01:20]} 22. Nd6 {[%clk 0:01:39]}  Rc6 {[%clk 0:01:16]} 23. b3 {[%clk 0:01:33]}  Rd8 {[%clk 0:00:39]} 24. Nxc4 {[%clk 0:01:24]}  Rxd1+ {[%clk 0:00:39]} 25. Rxd1 {[%clk 0:01:15]}  Nxc4 {[%clk 0:00:39]} 26. Rc1 {[%clk 0:01:00]}  Nxa3 {[%clk 0:00:21]} 27. Rxc6 {[%clk 0:01:01]}  Bxe2 {[%clk 0:00:21]} 28. Rc8+ {[%clk 0:00:53]}  Kh7 {[%clk 0:00:21]} 29. Rc7 {[%clk 0:00:54]}  a6 {[%clk 0:00:19]} 30. Rxf7 {[%clk 0:00:54]}  Kg6 {[%clk 0:00:18]} 31. Rb7 {[%clk 0:00:50]}  Bb5 {[%clk 0:00:17]} 32. f3 {[%clk 0:00:47]}  Nb1 {[%clk 0:00:17]} 33. Kf2 {[%clk 0:00:45]}  Nd2 {[%clk 0:00:13]} 34. b4 {[%clk 0:00:46]}  Nb3 {[%clk 0:00:11]} 35. Rc7 {[%clk 0:00:45]}  Kf6 {[%clk 0:00:07]} 36. Rc3 {[%clk 0:00:44]}  Ba4 {[%clk 0:00:08]} 37. Ke2 {[%clk 0:00:40]}  e5 {[%clk 0:00:05]} 38. Kd3 {[%clk 0:00:39]}  Ke6 {[%clk 0:00:06]} 39. Kc4 {[%clk 0:00:39]}  Nd2+ {[%clk 0:00:06]} 40. Kd3 {[%clk 0:00:37]}  Nf1 {[%clk 0:00:06]} 41. h3 {[%clk 0:00:36]}  Bb5+ {[%clk 0:00:07]} 42. Kc2 {[%clk 0:00:30]}  e4 {[%clk 0:00:06]} 43. fxe4 {[%clk 0:00:29]}  Ng3 {[%clk 0:00:06]} 44. Rc7 {[%clk 0:00:25]}  g6 {[%clk 0:00:04]} 45. Kc3 {[%clk 0:00:19]}  Ke5 {[%clk 0:00:04]} 46. Re7+ {[%clk 0:00:18]}  Kf6 {[%clk 0:00:05]} 47. Ra7 {[%clk 0:00:16]}  Ne2+ {[%clk 0:00:05]} 48. Kd2 {[%clk 0:00:15]}  Ng3 {[%clk 0:00:06]} 49. Kc3 {[%clk 0:00:16]}  Nxe4+ {[%clk 0:00:06]} 50. Kd4 {[%clk 0:00:16]}  Ng3 {[%clk 0:00:07]} 51. e4 {[%clk 0:00:15]}  Ne2+ {[%clk 0:00:06]} 52. Kd5 {[%clk 0:00:15]}  Nc3+ {[%clk 0:00:06]} 53. Kd4 {[%clk 0:00:15]}  Ne2+ {[%clk 0:00:07]} 54. Kd5 {[%clk 0:00:15]}  Nf4+ {[%clk 0:00:07]} 55. Kd6 {[%clk 0:00:15]}  Nd3 {[%clk 0:00:06]} 56. g4 {[%clk 0:00:12]}  Ne5 {[%clk 0:00:04]} 57. Ra8 {[%clk 0:00:10]}  Nf7+ {[%clk 0:00:04]} 58. Kd5 {[%clk 0:00:10]}  Bf1 {[%clk 0:00:03]} 59. Ra7 {[%clk 0:00:08]}  Bxh3 {[%clk 0:00:03]} 60. Rxa6+ {[%clk 0:00:08]}  Kg7 {[%clk 0:00:02]} 61. e5 {[%clk 0:00:07]}  Bxg4 {[%clk 0:00:03]} 62. Ra7 {[%clk 0:00:06]}  Kf8 {[%clk 0:00:02]} 63. e6 {[%clk 0:00:06]}  Nh6 {[%clk 0:00:02]} 64. Kd6 {[%clk 0:00:06]}  Nf5+ {[%clk 0:00:03]} 65. Kd7 {[%clk 0:00:05]}  Nd4 {[%clk 0:00:03]} 66. Ra8+ {[%clk 0:00:00]}  Kg7 {[%clk 0:00:04]} 0-1

[Event "December 19 Early 2023"]
[Site "https://www.chess.com"]
[Date "2023.12.19"]
[Round "6"]
[White "Shimanov, Aleksandr"]
[Black "Thorfinnsson, Bragi"]
[Result "1/2-1/2"]
[Board "54"]
[TimeControl "180+1"]
[WhiteFideId "4198603"]
[BlackFideId "2300958"]
[WhiteElo "2611"]
[BlackElo "2325"]
[WhiteTeam "RUS"]
[BlackTeam "ISL"]
[WhiteClock "0:00:02"]
[BlackClock "0:00:03"]

1. d4 {[%clk 0:03:00]}  Nf6 {[%clk 0:02:45]} 2. Bg5 {[%clk 0:03:00]}  d5 {[%clk 0:02:43]} 3. Nd2 {[%clk 0:03:00]}  Nbd7 {[%clk 0:02:34]} 4. Ngf3 {[%clk 0:02:59]}  h6 {[%clk 0:02:33]} 5. Bh4 {[%clk 0:02:58]}  e6 {[%clk 0:02:25]} 6. e3 {[%clk 0:02:58]}  Be7 {[%clk 0:02:24]} 7. Bd3 {[%clk 0:02:58]}  b6 {[%clk 0:02:25]} 8. Ne5 {[%clk 0:02:51]}  Nxe5 {[%clk 0:02:18]} 9. dxe5 {[%clk 0:02:52]}  Nd7 {[%clk 0:02:19]} 10. Bg3 {[%clk 0:02:50]}  Bb7 {[%clk 0:02:10]} 11. O-O {[%clk 0:02:45]}  Nc5 {[%clk 0:01:18]} 12. Bb5+ {[%clk 0:02:43]}  Kf8 {[%clk 0:01:16]} 13. Qe2 {[%clk 0:02:23]}  Bh4 {[%clk 0:01:00]} 14. f4 {[%clk 0:02:13]}  Bxg3 {[%clk 0:00:57]} 15. hxg3 {[%clk 0:02:14]}  g6 {[%clk 0:00:56]} 16. g4 {[%clk 0:02:12]}  h5 {[%clk 0:00:55]} 17. gxh5 {[%clk 0:01:56]}  Rxh5 {[%clk 0:00:56]} 18. Nf3 {[%clk 0:01:56]}  Ne4 {[%clk 0:00:52]} 19. Qe1 {[%clk 0:01:55]}  Kg7 {[%clk 0:00:46]} 20. Nd2 {[%clk 0:01:01]}  Qe7 {[%clk 0:00:26]} 21. Nxe4 {[%clk 0:00:53]}  dxe4 {[%clk 0:00:27]} 22. c3 {[%clk 0:00:49]}  Rah8 {[%clk 0:00:26]} 23. Qg3 {[%clk 0:00:48]}  Rd8 {[%clk 0:00:15]} 24. Rad1 {[%clk 0:00:48]}  Rhh8 {[%clk 0:00:15]} 25. Rxd8 {[%clk 0:00:24]}  Rxd8 {[%clk 0:00:12]} 26. f5 {[%clk 0:00:24]}  exf5 {[%clk 0:00:12]} 27. Rxf5 {[%clk 0:00:25]}  Rd1+ {[%clk 0:00:10]} 28. Kh2 {[%clk 0:00:18]}  Qd8 {[%clk 0:00:10]} 29. Rf4 {[%clk 0:00:17]}  Bd5 {[%clk 0:00:07]} 30. Be2 {[%clk 0:00:12]}  Rd2 {[%clk 0:00:07]} 31. Bg4 {[%clk 0:00:13]}  Qe7 {[%clk 0:00:05]} 32. Bh3 {[%clk 0:00:11]}  Be6 {[%clk 0:00:05]} 33. Bxe6 {[%clk 0:00:10]}  Qxe6 {[%clk 0:00:06]} 34. Rf6 {[%clk 0:00:11]}  Qe8 {[%clk 0:00:06]} 35. Qf4 {[%clk 0:00:09]}  Qh8+ {[%clk 0:00:06]} 36. Kg3 {[%clk 0:00:09]}  Rd7 {[%clk 0:00:04]} 37. e6 {[%clk 0:00:09]}  fxe6 {[%clk 0:00:05]} 38. Rxe6 {[%clk 0:00:09]}  Qd8 {[%clk 0:00:04]} 39. Qe5+ {[%clk 0:00:09]}  Kf7 {[%clk 0:00:04]} 40. Rc6 {[%clk 0:00:09]}  Re7 {[%clk 0:00:02]} 41. Qf6+ {[%clk 0:00:08]}  Ke8 {[%clk 0:00:03]} 42. Qxg6+ {[%clk 0:00:08]}  Kd7 {[%clk 0:00:04]} 43. Rf6 {[%clk 0:00:07]}  Kc8 {[%clk 0:00:04]} 44. Qf5+ {[%clk 0:00:08]}  Kb8 {[%clk 0:00:04]} 45. Rf8 {[%clk 0:00:07]}  Re8 {[%clk 0:00:05]} 46. Rxe8 {[%clk 0:00:07]}  Qxe8 {[%clk 0:00:06]} 47. Kf4 {[%clk 0:00:08]}  Qa4 {[%clk 0:00:03]} 48. Qxe4 {[%clk 0:00:07]}  Qxa2 {[%clk 0:00:04]} 49. b4 {[%clk 0:00:04]}  Qf2+ {[%clk 0:00:03]} 50. Qf3 {[%clk 0:00:04]}  Qc2 {[%clk 0:00:03]} 51. Qc6 {[%clk 0:00:04]}  Qf2+ {[%clk 0:00:03]} 52. Qf3 {[%clk 0:00:04]}  Qc2 {[%clk 0:00:03]} 53. e4 {[%clk 0:00:05]}  Qc1+ {[%clk 0:00:03]} 54. Qe3 {[%clk 0:00:05]}  Qf1+ {[%clk 0:00:02]} 55. Kg3 {[%clk 0:00:04]}  Qc4 {[%clk 0:00:02]} 56. e5 {[%clk 0:00:05]}  a5 {[%clk 0:00:02]} 57. e6 {[%clk 0:00:03]}  a4 {[%clk 0:00:03]} 58. e7 {[%clk 0:00:03]}  Qg8+ {[%clk 0:00:03]} 59. Kf4 {[%clk 0:00:03]}  Qe8 {[%clk 0:00:04]} 60. c4 {[%clk 0:00:03]}  a3 {[%clk 0:00:04]} 61. Qxa3 {[%clk 0:00:03]}  Qxe7 {[%clk 0:00:05]} 62. Qc3 {[%clk 0:00:03]}  Qf8+ {[%clk 0:00:05]} 63. Kg3 {[%clk 0:00:04]}  Qg8+ {[%clk 0:00:05]} 64. Kf2 {[%clk 0:00:04]}  Qf7+ {[%clk 0:00:05]} 65. Kg1 {[%clk 0:00:04]}  Qg6 {[%clk 0:00:06]} 66. c5 {[%clk 0:00:03]}  Qb1+ {[%clk 0:00:06]} 67. Kf2 {[%clk 0:00:03]}  Qf5+ {[%clk 0:00:06]} 68. Kg3 {[%clk 0:00:03]}  Qg6+ {[%clk 0:00:07]} 69. Kf3 {[%clk 0:00:04]}  Qf5+ {[%clk 0:00:07]} 70. Kg3 {[%clk 0:00:04]}  Qg6+ {[%clk 0:00:07]} 71. Kh2 {[%clk 0:00:04]}  Qh7+ {[%clk 0:00:05]} 72. Qh3 {[%clk 0:00:04]}  Qc2 {[%clk 0:00:05]} 73. cxb6 {[%clk 0:00:04]}  cxb6 {[%clk 0:00:06]} 74. Qg3+ {[%clk 0:00:04]}  Kb7 {[%clk 0:00:06]} 75. Qf4 {[%clk 0:00:04]}  Qh7+ {[%clk 0:00:06]} 76. Kg3 {[%clk 0:00:04]}  Qg6+ {[%clk 0:00:05]} 77. Kf3 {[%clk 0:00:05]}  Qh5+ {[%clk 0:00:04]} 78. Qg4 {[%clk 0:00:04]}  Qf7+ {[%clk 0:00:04]} 79. Qf4 {[%clk 0:00:04]}  Qb3+ {[%clk 0:00:05]} 80. Kg4 {[%clk 0:00:04]}  b5 {[%clk 0:00:05]} 81. Kh4 {[%clk 0:00:03]}  Qc4 {[%clk 0:00:05]} 82. Kg5 {[%clk 0:00:02]}  Qg8+ {[%clk 0:00:04]} 83. Kf6 {[%clk 0:00:02]}  Qxg2 {[%clk 0:00:04]} 84. Ke6 {[%clk 0:00:01]}  Qc6+ {[%clk 0:00:05]} 85. Qd6 {[%clk 0:00:01]}  Qc4+ {[%clk 0:00:05]} 86. Kd7 {[%clk 0:00:01]}  Qc8+ {[%clk 0:00:04]} 87. Ke7 {[%clk 0:00:02]}  Qc4 {[%clk 0:00:03]} 88. Kd8 {[%clk 0:00:01]}  Qc8+ {[%clk 0:00:04]} 89. Ke7 {[%clk 0:00:02]}  Qc4 {[%clk 0:00:04]} 90. Qd2 {[%clk 0:00:02]}  Kc6 {[%clk 0:00:03]} 91. Qd6+ {[%clk 0:00:02]}  Kb7 {[%clk 0:00:03]} 1/2-1/2

[Event "December 19 Early 2023"]
[Site "https://www.chess.com"]
[Date "2023.12.19"]
[Round "6"]
[White "Melian, Juan Sebastian"]
[Black "Muradli, Mahammad"]
[Result "0-1"]
[Board "58"]
[TimeControl "180+1"]
[WhiteFideId "3706575"]
[BlackFideId "13409301"]
[WhiteElo "2098"]
[BlackElo "2551"]
[WhiteTeam "PAR"]
[BlackTeam "AZE"]
[WhiteClock "0:00:05"]
[BlackClock "0:00:04"]

1. d4 {[%clk 0:02:55]}  b6 {[%clk 0:03:00]} 2. e4 {[%clk 0:02:55]}  Bb7 {[%clk 0:03:01]} 3. Nc3 {[%clk 0:02:56]}  g6 {[%clk 0:03:02]} 4. Be3 {[%clk 0:02:55]}  Bg7 {[%clk 0:03:02]} 5. Qd2 {[%clk 0:02:56]}  Nf6 {[%clk 0:02:54]} 6. f3 {[%clk 0:02:54]}  d6 {[%clk 0:02:53]} 7. O-O-O {[%clk 0:02:54]}  Nbd7 {[%clk 0:02:50]} 8. Bh6 {[%clk 0:02:46]}  O-O {[%clk 0:02:43]} 9. h4 {[%clk 0:02:46]}  c5 {[%clk 0:02:43]} 10. Nge2 {[%clk 0:02:43]}  cxd4 {[%clk 0:02:39]} 11. Nxd4 {[%clk 0:02:44]}  Rc8 {[%clk 0:02:38]} 12. h5 {[%clk 0:02:39]}  Bh8 {[%clk 0:02:06]} 13. hxg6 {[%clk 0:02:28]}  hxg6 {[%clk 0:02:04]} 14. Bxf8 {[%clk 0:01:55]}  Qxf8 {[%clk 0:01:35]} 15. Kb1 {[%clk 0:01:55]}  Bg7 {[%clk 0:01:27]} 16. Be2 {[%clk 0:01:54]}  a6 {[%clk 0:01:21]} 17. Qe1 {[%clk 0:01:51]}  Ne5 {[%clk 0:01:15]} 18. Qh4 {[%clk 0:01:48]}  Rxc3 {[%clk 0:00:54]} 19. bxc3 {[%clk 0:01:46]}  Qc8 {[%clk 0:00:55]} 20. Kb2 {[%clk 0:01:34]}  b5 {[%clk 0:00:38]} 21. a3 {[%clk 0:01:27]}  d5 {[%clk 0:00:27]} 22. Qg3 {[%clk 0:01:13]}  dxe4 {[%clk 0:00:09]} 23. fxe4 {[%clk 0:00:36]}  Nxe4 {[%clk 0:00:08]} 24. Qe3 {[%clk 0:00:36]}  Nd6 {[%clk 0:00:06]} 25. Kb1 {[%clk 0:00:28]}  Bxg2 {[%clk 0:00:06]} 26. Rhg1 {[%clk 0:00:19]}  Be4 {[%clk 0:00:06]} 27. Rgf1 {[%clk 0:00:08]}  e6 {[%clk 0:00:05]} 28. Rf4 {[%clk 0:00:08]}  Bd5 {[%clk 0:00:04]} 29. Rdf1 {[%clk 0:00:08]}  Nec4 {[%clk 0:00:03]} 30. Bxc4 {[%clk 0:00:08]}  Qxc4 {[%clk 0:00:04]} 31. Kc1 {[%clk 0:00:07]}  Qc5 {[%clk 0:00:04]} 32. Kd2 {[%clk 0:00:05]}  Nc4+ {[%clk 0:00:04]} 0-1

[Event "December 19 Early 2023"]
[Site "https://www.chess.com"]
[Date "2023.12.19"]
[Round "6"]
[White "Movahed, Sina"]
[Black "Shubenkova, Veronika"]
[Result "1-0"]
[Board "59"]
[TimeControl "180+1"]
[WhiteFideId "42520835"]
[BlackFideId "44124040"]
[WhiteElo "2341"]
[BlackElo "1967"]
[WhiteTeam "IRI"]
[BlackTeam "RUS"]
[WhiteClock "0:01:12"]
[BlackClock "0:00:00"]

1. Nf3 {[%clk 0:03:00]}  d5 {[%clk 0:02:59]} 2. c4 {[%clk 0:03:01]}  c6 {[%clk 0:02:59]} 3. g3 {[%clk 0:03:01]}  Nf6 {[%clk 0:02:59]} 4. Bg2 {[%clk 0:03:02]}  g6 {[%clk 0:02:59]} 5. b3 {[%clk 0:03:01]}  Bg7 {[%clk 0:02:59]} 6. Bb2 {[%clk 0:03:01]}  O-O {[%clk 0:02:59]} 7. O-O {[%clk 0:03:01]}  Nbd7 {[%clk 0:03:00]} 8. d4 {[%clk 0:02:59]}  Re8 {[%clk 0:03:00]} 9. Nbd2 {[%clk 0:02:58]}  Nf8 {[%clk 0:02:58]} 10. Rc1 {[%clk 0:02:56]}  Bf5 {[%clk 0:02:58]} 11. Ne5 {[%clk 0:02:51]}  N8d7 {[%clk 0:02:53]} 12. Nef3 {[%clk 0:02:44]}  Nf8 {[%clk 0:02:53]} 13. Re1 {[%clk 0:02:44]}  Ne4 {[%clk 0:02:53]} 14. Nh4 {[%clk 0:02:40]}  Qb6 {[%clk 0:02:43]} 15. Nxf5 {[%clk 0:02:37]}  gxf5 {[%clk 0:02:42]} 16. e3 {[%clk 0:02:37]}  e6 {[%clk 0:02:25]} 17. Nxe4 {[%clk 0:02:07]}  fxe4 {[%clk 0:02:25]} 18. Ba3 {[%clk 0:02:04]}  Ng6 {[%clk 0:02:24]} 19. Bd6 {[%clk 0:02:03]}  Qd8 {[%clk 0:02:16]} 20. Ba3 {[%clk 0:02:00]}  Qa5 {[%clk 0:02:16]} 21. Bc5 {[%clk 0:02:00]}  Rad8 {[%clk 0:01:50]} 22. b4 {[%clk 0:01:56]}  Qc7 {[%clk 0:01:35]} 23. b5 {[%clk 0:01:38]}  b6 {[%clk 0:01:25]} 24. Ba3 {[%clk 0:01:36]}  cxb5 {[%clk 0:01:12]} 25. cxd5 {[%clk 0:01:33]}  Qd7 {[%clk 0:01:10]} 26. Bxe4 {[%clk 0:01:26]}  exd5 {[%clk 0:01:09]} 27. Bg2 {[%clk 0:01:26]}  Rc8 {[%clk 0:01:04]} 28. Qh5 {[%clk 0:01:24]}  b4 {[%clk 0:00:37]} 29. Bxb4 {[%clk 0:01:20]}  Qa4 {[%clk 0:00:33]} 30. Bd6 {[%clk 0:01:18]}  Qxa2 {[%clk 0:00:27]} 31. Bxd5 {[%clk 0:01:15]}  Qb2 {[%clk 0:00:26]} 32. Bxf7+ {[%clk 0:01:12]}  Kxf7 {[%clk 0:00:18]} 33. Rxc8 {[%clk 0:01:13]}  Rxc8 {[%clk 0:00:11]} 34. Qf5+ {[%clk 0:01:13]}  Bf6 {[%clk 0:00:11]} 35. Qxc8 {[%clk 0:01:13]}  Qd2 {[%clk 0:00:11]} 36. Rc1 {[%clk 0:01:12]}  Ne7 {[%clk 0:00:09]} 37. Bxe7 {[%clk 0:01:12]}  Bxe7 {[%clk 0:00:00]} 38. Qf5+ {[%clk 0:01:12]} 1-0

[Event "December 19 Early 2023"]
[Site "https://www.chess.com"]
[Date "2023.12.19"]
[Round "6"]
[White "Corrales Jimenez, Fidel"]
[Black "Trost, Edvin"]
[Result "1-0"]
[Board "61"]
[TimeControl "180+1"]
[WhiteFideId "3506690"]
[BlackFideId "1729519"]
[WhiteElo "2507"]
[BlackElo "2385"]
[WhiteTeam "USA"]
[BlackTeam "SWE"]
[WhiteClock "0:00:20"]
[BlackClock "0:00:02"]

1. e4 {[%clk 0:02:56]}  c6 {[%clk 0:02:54]} 2. d4 {[%clk 0:02:55]}  d5 {[%clk 0:02:55]} 3. e5 {[%clk 0:02:55]}  Bf5 {[%clk 0:02:53]} 4. h4 {[%clk 0:02:55]}  h5 {[%clk 0:02:52]} 5. Bd3 {[%clk 0:02:55]}  Bxd3 {[%clk 0:02:52]} 6. Qxd3 {[%clk 0:02:55]}  Qa5+ {[%clk 0:02:48]} 7. Nd2 {[%clk 0:02:55]}  e6 {[%clk 0:02:48]} 8. Ne2 {[%clk 0:02:55]}  c5 {[%clk 0:02:32]} 9. O-O {[%clk 0:02:54]}  Nc6 {[%clk 0:02:28]} 10. c3 {[%clk 0:02:51]}  cxd4 {[%clk 0:02:25]} 11. cxd4 {[%clk 0:02:51]}  Nge7 {[%clk 0:02:25]} 12. Nf3 {[%clk 0:02:49]}  Nf5 {[%clk 0:02:24]} 13. Ng3 {[%clk 0:02:47]}  g6 {[%clk 0:02:20]} 14. Nxf5 {[%clk 0:02:47]}  gxf5 {[%clk 0:02:20]} 15. Bg5 {[%clk 0:02:47]}  Qa6 {[%clk 0:02:16]} 16. Qe3 {[%clk 0:02:46]}  Rg8 {[%clk 0:02:12]} 17. Rfc1 {[%clk 0:02:45]}  Rc8 {[%clk 0:02:07]} 18. a3 {[%clk 0:02:45]}  Kd7 {[%clk 0:02:06]} 19. b4 {[%clk 0:02:45]}  Bg7 {[%clk 0:01:47]} 20. Rc5 {[%clk 0:02:43]}  Qa4 {[%clk 0:01:45]} 21. Rac1 {[%clk 0:02:42]}  b6 {[%clk 0:01:44]} 22. R5c3 {[%clk 0:02:41]}  Rc7 {[%clk 0:01:44]} 23. R1c2 {[%clk 0:02:17]}  Rgc8 {[%clk 0:01:43]} 24. Qc1 {[%clk 0:02:17]}  Bf8 {[%clk 0:01:30]} 25. Bf6 {[%clk 0:02:13]}  a5 {[%clk 0:01:26]} 26. bxa5 {[%clk 0:02:13]}  Qxa5 {[%clk 0:01:21]} 27. Qg5 {[%clk 0:01:22]}  Bxa3 {[%clk 0:00:15]} 28. Qxh5 {[%clk 0:01:18]}  Nd8 {[%clk 0:00:05]} 29. Rxc7+ {[%clk 0:00:52]}  Rxc7 {[%clk 0:00:06]} 30. Rxc7+ {[%clk 0:00:52]}  Kxc7 {[%clk 0:00:07]} 31. Bxd8+ {[%clk 0:00:53]}  Kxd8 {[%clk 0:00:08]} 32. Qxf7 {[%clk 0:00:53]}  Qc3 {[%clk 0:00:08]} 33. Kh2 {[%clk 0:00:24]}  Qc1 {[%clk 0:00:04]} 34. g3 {[%clk 0:00:23]}  Qc6 {[%clk 0:00:01]} 35. h5 {[%clk 0:00:22]}  Bc1 {[%clk 0:00:01]} 36. h6 {[%clk 0:00:21]}  Bxh6 {[%clk 0:00:01]} 37. Qf6+ {[%clk 0:00:21]}  Kd7 {[%clk 0:00:02]} 38. Qxh6 {[%clk 0:00:22]}  b5 {[%clk 0:00:03]} 39. Qf8 {[%clk 0:00:19]}  Qc3 {[%clk 0:00:02]} 40. Qd6+ {[%clk 0:00:19]}  Kc8 {[%clk 0:00:02]} 41. Qxe6+ {[%clk 0:00:20]}  Kb8 {[%clk 0:00:03]} 42. Qb6+ {[%clk 0:00:19]}  Kc8 {[%clk 0:00:03]} 43. Kg2 {[%clk 0:00:19]}  b4 {[%clk 0:00:03]} 44. e6 {[%clk 0:00:19]}  b3 {[%clk 0:00:01]} 45. e7 {[%clk 0:00:18]}  Kd7 {[%clk 0:00:01]} 46. Qd8+ {[%clk 0:00:18]}  Kc6 {[%clk 0:00:02]} 47. e8=Q+ {[%clk 0:00:19]}  Kb7 {[%clk 0:00:03]} 48. Qb5+ {[%clk 0:00:19]}  Ka7 {[%clk 0:00:02]} 49. Qdb8# {[%clk 0:00:20]} 1-0

[Event "December 19 Early 2023"]
[Site "https://www.chess.com"]
[Date "2023.12.19"]
[Round "6"]
[White "Aswath, S"]
[Black "Brodsky, David"]
[Result "1/2-1/2"]
[Board "64"]
[TimeControl "180+1"]
[WhiteFideId "46694919"]
[BlackFideId "2073250"]
[WhiteElo "2138"]
[BlackElo "2815"]
[WhiteTeam "IND"]
[BlackTeam "USA"]
[WhiteClock "0:00:08"]
[BlackClock "0:00:09"]

1. c4 {[%clk 0:03:00]}  b6 {[%clk 0:02:56]} 2. d4 {[%clk 0:02:57]}  Bb7 {[%clk 0:02:56]} 3. Nc3 {[%clk 0:02:57]}  e6 {[%clk 0:02:56]} 4. Qc2 {[%clk 0:02:56]}  f5 {[%clk 0:02:51]} 5. Nf3 {[%clk 0:02:53]}  Nf6 {[%clk 0:02:51]} 6. Bg5 {[%clk 0:02:49]}  Bb4 {[%clk 0:02:45]} 7. a3 {[%clk 0:02:48]}  Bxc3+ {[%clk 0:02:45]} 8. Qxc3 {[%clk 0:02:49]}  h6 {[%clk 0:02:44]} 9. Bxf6 {[%clk 0:02:48]}  Qxf6 {[%clk 0:02:45]} 10. e3 {[%clk 0:02:43]}  O-O {[%clk 0:02:41]} 11. h4 {[%clk 0:02:40]}  f4 {[%clk 0:02:16]} 12. Be2 {[%clk 0:02:34]}  fxe3 {[%clk 0:02:13]} 13. fxe3 {[%clk 0:02:35]}  Nc6 {[%clk 0:01:57]} 14. Qc2 {[%clk 0:02:17]}  Ne7 {[%clk 0:01:55]} 15. O-O-O {[%clk 0:02:00]}  Nf5 {[%clk 0:01:53]} 16. Qd2 {[%clk 0:01:41]}  Ng3 {[%clk 0:01:44]} 17. Rh3 {[%clk 0:01:41]}  Nxe2+ {[%clk 0:01:14]} 18. Qxe2 {[%clk 0:01:40]}  d6 {[%clk 0:01:15]} 19. Rf1 {[%clk 0:01:24]}  Qf5 {[%clk 0:01:08]} 20. Nd2 {[%clk 0:01:21]}  Qg6 {[%clk 0:01:01]} 21. Rxf8+ {[%clk 0:01:09]}  Rxf8 {[%clk 0:01:02]} 22. g4 {[%clk 0:01:08]}  Qf6 {[%clk 0:00:56]} 23. Rh2 {[%clk 0:01:07]}  e5 {[%clk 0:00:52]} 24. d5 {[%clk 0:01:05]}  Qg6 {[%clk 0:00:47]} 25. g5 {[%clk 0:00:59]}  hxg5 {[%clk 0:00:44]} 26. Rg2 {[%clk 0:00:58]}  Bc8 {[%clk 0:00:40]} 27. Rxg5 {[%clk 0:00:54]}  Qh6 {[%clk 0:00:40]} 28. Qg2 {[%clk 0:00:52]}  Bf5 {[%clk 0:00:39]} 29. e4 {[%clk 0:00:52]}  Bh7 {[%clk 0:00:35]} 30. Qg3 {[%clk 0:00:51]}  Rf4 {[%clk 0:00:31]} 31. Qh3 {[%clk 0:00:17]}  Qxh4 {[%clk 0:00:13]} 32. Qe6+ {[%clk 0:00:17]}  Rf7 {[%clk 0:00:13]} 33. Rg4 {[%clk 0:00:10]}  Qf6 {[%clk 0:00:09]} 34. Qc8+ {[%clk 0:00:09]}  Rf8 {[%clk 0:00:10]} 35. Qxc7 {[%clk 0:00:10]}  Rf7 {[%clk 0:00:09]} 36. Qc8+ {[%clk 0:00:09]}  Rf8 {[%clk 0:00:09]} 37. Qd7 {[%clk 0:00:10]}  Rf7 {[%clk 0:00:09]} 38. Qc8+ {[%clk 0:00:10]}  Rf8 {[%clk 0:00:09]} 39. Qd7 {[%clk 0:00:09]}  Rf7 {[%clk 0:00:09]} 40. Qc8+ {[%clk 0:00:08]} 1/2-1/2